[Event "Belarus-ch Men 2022"]
[Site "Minsk"]
[Date "2022.01.13"]
[Round "1.1"]
[White "Stribuk, Artiom"]
[Black "Tsaruk, Maksim"]
[Result "0-1"]
[ECO "E11"]
[WhiteElo "2210"]
[BlackElo "2343"]
[Annotator "ChessBase"]
[PlyCount "98"]
[EventDate "2022.01.09"]
[EventType "tourn"]
[EventCountry "BLR"]
[SourceTitle "playchess.com"]
[Source "ChessBase"]
[SourceQuality "1"]
[TimeControl "40/5400+30:1800+30"]

1. d4 {[%emt 0:00:01]} Nf6 {[%emt 0:00:58]} 2. c4 {[%emt 0:00:15]} e6 {[%emt 0:00:09]} 3. g3 {[%emt 0:00:13]} d5 {[%emt 0:00:22]} 4. Nf3 {[%emt 0:00:12]} Bb4+ {[%emt 0:00:12]} 5. Bd2 {[%emt 0:00:29]} Be7 {[%emt 0:00:08]} 6. Bg2 {[%emt 0:00:13]} O-O {[%emt 0:00:11]} 7. Qc2 {[%emt 0:00:12]} c6 {[%emt 0:00:11]} 8. h4 {[%emt 0:00:18]} Nbd7 {[%emt 0:10:46]} 9. Nc3 {[%emt 0:00:20]} dxc4 {[%emt 0:01:45]} 10. Rd1 {[%emt 0:00:13]} Qc7 {[%emt 0:12:19]} 11. Bf4 {[%emt 0:15:22]} Bd6 {[%emt 0:09:57]} 12. Bxd6 {[%emt 0:00:41]} Qxd6 {[%emt 0:00:05]} 13. e4 {[%emt 0:01:09]} Qe7 {[%emt 0:03:00]} 14. e5 {[%emt 0:09:00]} Nd5 {[%emt 0:00:06]} 15. Ng5 {[%emt 0:19:04]} f5 {[%emt 0:03:44]} 16. Qe2 {[%emt 0:13:43]} h6 {[%emt 0:12:52]} 17. Nh3 {[%emt 0:03:28]} N7b6 {[%emt 0:00:14]} 18. Bxd5 {[%emt 0:04:04]} cxd5 {[%emt 0:02:24]} 19. Nf4 {[%emt 0:00:30]} Rf7 {[%emt 0:07:25]} 20. g4 {[%emt 0:07:31]} fxg4 {[%emt 0:04:05]} 21. Qxg4 {[%emt 0:00:09]} Rf5 {[%emt 0:03:55]} 22. Rg1 {[%emt 0:04:01]} Qf7 {[%emt 0:00:08]} 23. Nce2 {[%emt 0:01:45]} Bd7 {[%emt 0:00:27]} 24. Rc1 {[%emt 0:02:23]} Kh7 {[%emt 0:14:56]} 25. Rc3 {[%emt 0:05:31]} Na4 {[%emt 0:04:27]} 26. Rcg3 {[%emt 0:01:36]} Rg8 {[%emt 0:00:06]} 27. Nh3 {[%emt 0:04:20]} Be8 {[%emt 0:04:50]} 28. Ng5+ {[%emt 0:04:59]} hxg5 {[%emt 0:00:06]} 29. hxg5 {[%emt 0:00:03]} Rf8 {[%emt 0:01:47]} 30. Rh1+ {[%emt 0:02:03]} Kg8 {[%emt 0:00:06]} 31. Rgh3 {[%emt 0:00:54]} Qg6 {[%emt 0:01:31]} 32. Nf4 {[%emt 0:00:37]} Rxf4 {[%emt 0:02:05]} 33. Rh8+ {[%emt 0:00:05]} Kf7 {[%emt 0:00:02]} 34. Qxf4+ {[%emt 0:00:05]} Qf5 {[%emt 0:00:03]} 35. g6+ {[%emt 0:01:30]} Ke7 {[%emt 0:00:15]} 36. Rxf8 {[%emt 0:00:32]} Kxf8 {[%emt 0:01:52]} 37. Rh8+ {[%emt 0:00:41]} Ke7 {[%emt 0:00:03]} 38. Qh4+ {[%emt 0:00:32]} Kd7 {[%emt 0:00:05]} 39. Rg8 {[%emt 0:00:41]} Qb1+ {[%emt 0:00:48]} 40. Ke2 {[%emt 0:00:00]} Qd3+ {[%emt 0:00:00]} 41. Ke1 {[%emt 0:00:19]} Qxg6 {[%emt 0:16:31]} 42. Qh8 {[%emt 0:00:12]} Qb1+ {[%emt 0:02:00]} 43. Ke2 {[%emt 0:00:49]} Qd3+ {[%emt 0:00:06]} 44. Ke1 {[%emt 0:00:04]} Nxb2 {[%emt 0:03:43]} 45. Rxg7+ {[%emt 0:02:55]} Kd8 {[%emt 0:00:13]} 46. Qh4+ {[%emt 0:03:20]} Kc8 {[%emt 0:00:15]} 47. f3 {[%emt 0:04:04]} Qxf3 {[%emt 0:07:08]} 48. Qf6 {[%emt 0:13:26]} Nd3+ {[%emt 0:00:07]} 49. Kd2 {[%emt 0:00:06]} Qf2+ {[%emt 0:00:08]} 0-1

[Event "Belarus-ch Men 2022"]
[Site "Minsk"]
[Date "2022.01.13"]
[Round "1.5"]
[White "Siniauski, Artsiom"]
[Black "Runets, Ivan"]
[Result "1/2-1/2"]
[ECO "C43"]
[WhiteElo "2301"]
[BlackElo "2240"]
[Annotator "ChessBase"]
[PlyCount "67"]
[EventDate "2022.01.09"]
[EventType "tourn"]
[EventCountry "BLR"]
[SourceTitle "playchess.com"]
[Source "ChessBase"]
[SourceQuality "1"]
[TimeControl "40/5400+30:1800+30"]

1. e4 {[%emt 0:00:03]} e5 {[%emt 0:00:04]} 2. Nf3 {[%emt 0:00:12]} Nf6 {[%emt 0:00:11]} 3. d4 {[%emt 0:01:33]} Nxe4 {[%emt 0:01:19]} 4. Bd3 {[%emt 0:01:17]} d5 {[%emt 0:00:28]} 5. Nxe5 {[%emt 0:01:00]} Nd7 {[%emt 0:00:19]} 6. Nxd7 {[%emt 0:04:19]} Bxd7 {[%emt 0:00:16]} 7. O-O {[%emt 0:00:35]} Bd6 {[%emt 0:00:20]} 8. c4 {[%emt 0:02:19]} O-O {[%emt 0:00:51]} 9. c5 {[%emt 0:20:47]} Be7 {[%emt 0:00:25]} 10. Nd2 {[%emt 0:03:20]} Nxd2 {[%emt 0:18:13]} 11. Bxd2 {[%emt 0:02:10]} Bf6 {[%emt 0:03:21]} 12. Be3 {[%emt 0:02:54]} c6 {[%emt 0:05:18]} 13. a4 {[%emt 0:09:38]} a5 {[%emt 0:16:14]} 14. Bf4 {[%emt 0:08:33]} Re8 {[%emt 0:05:14]} 15. Ra3 {[%emt 0:03:45]} Bxd4 {[%emt 0:03:25]} 16. Bxh7+ {[%emt 0:05:25]} Kxh7 {[%emt 0:01:02]} 17. Qxd4 {[%emt 0:00:10]} Re4 {[%emt 0:00:30]} 18. Qd2 {[%emt 0:00:44]} Bf5 {[%emt 0:09:33]} 19. g4 {[%emt 0:09:10]} Bg6 {[%emt 0:04:27]} 20. Rh3+ {[%emt 0:06:40]} Kg8 {[%emt 0:00:12]} 21. f3 {[%emt 0:00:10]} Rc4 {[%emt 0:04:27]} 22. Be5 {[%emt 0:00:39]} f6 {[%emt 0:00:36]} 23. Bd4 {[%emt 0:00:44]} Rc2 {[%emt 0:04:39]} 24. Qe1 {[%emt 0:04:02]} Qe8 {[%emt 0:06:19]} 25. Qh4 {[%emt 0:03:40]} Qe2 {[%emt 0:05:16]} 26. Bf2 {[%emt 0:02:52]} Kf7 {[%emt 0:00:44]} 27. Re1 {[%emt 0:03:54]} Qd2 {[%emt 0:00:32]} 28. Qg3 {[%emt 0:00:14]} Kg8 {[%emt 0:07:25]} 29. Qh4 {[%emt 0:00:12]} Kf7 {[%emt 0:00:12]} 30. Qg3 {[%emt 0:00:04]} Rf8 {[%emt 0:01:13]} 31. Be3 {[%emt 0:01:50]} Qb4 {[%emt 0:00:41]} 32. Bf2 {[%emt 0:00:37]} Qd2 {[%emt 0:00:53]} 33. Be3 {[%emt 0:00:05]} Qb4 {[%emt 0:01:20]} 34. Bf2 {[%emt 0:00:04]} 1/2-1/2

[Event "Belarus-ch Men 2022"]
[Site "Minsk"]
[Date "2022.01.13"]
[Round "2.6"]
[White "Stribuk, Artiom"]
[Black "Volianuk, Vitaly"]
[Result "1-0"]
[ECO "A42"]
[WhiteElo "2210"]
[BlackElo "2267"]
[Annotator "ChessBase"]
[PlyCount "119"]
[EventDate "2022.01.09"]
[EventType "tourn"]
[EventCountry "BLR"]
[SourceTitle "playchess.com"]
[Source "ChessBase"]
[SourceQuality "1"]
[TimeControl "40/5400+30:1800+30"]

1. d4 {[%emt 0:00:03]} g6 {[%emt 0:00:05]} 2. c4 {[%emt 0:00:09]} Bg7 {[%emt 0:00:06]} 3. Nc3 {[%emt 0:00:14]} d6 {[%emt 0:00:06]} 4. e4 {[%emt 0:00:48]} e5 {[%emt 0:00:32]} 5. Nge2 {[%emt 0:05:16]} Nc6 {[%emt 0:04:22]} 6. Be3 {[%emt 0:07:33]} h5 {[%emt 0:00:25]} 7. h4 {[%emt 0:04:49]} Bh6 {[%emt 0:03:19]} 8. Qd2 {[%emt 0:01:23]} Bxe3 {[%emt 0:10:48]} 9. Qxe3 {[%emt 0:00:02]} Nh6 {[%emt 0:01:23]} 10. f3 {[%emt 0:03:52]} Be6 {[%emt 0:12:26]} 11. d5 {[%emt 0:07:08]} Nb4 {[%emt 0:00:07]} 12. O-O-O {[%emt 0:00:13]} Bd7 {[%emt 0:01:12]} 13. a3 {[%emt 0:00:13]} Na6 {[%emt 0:00:08]} 14. b4 {[%emt 0:01:18]} Qe7 {[%emt 0:03:35]} 15. g3 {[%emt 0:03:39]} Nb8 {[%emt 0:05:08]} 16. Kb2 {[%emt 0:02:37]} a5 {[%emt 0:01:19]} 17. Nc1 {[%emt 0:03:30]} Kf8 {[%emt 0:07:53]} 18. Be2 {[%emt 0:02:07]} Kg7 {[%emt 0:02:08]} 19. Nd3 {[%emt 0:08:12]} axb4 {[%emt 0:04:32]} 20. axb4 {[%emt 0:00:16]} Na6 {[%emt 0:00:18]} 21. Ra1 {[%emt 0:04:08]} c5 {[%emt 0:07:14]} 22. b5 {[%emt 0:04:56]} Nc7 {[%emt 0:03:29]} 23. Na4 {[%emt 0:09:08]} Rab8 {[%emt 0:01:24]} 24. Ra3 {[%emt 0:04:48]} f5 {[%emt 0:03:46]} 25. Nb6 {[%emt 0:01:55]} Na8 {[%emt 0:01:25]} 26. Nxd7 {[%emt 0:04:26]} Qxd7 {[%emt 0:00:10]} 27. f4 {[%emt 0:00:11]} Nb6 {[%emt 0:01:30]} 28. Rc1 {[%emt 0:01:07]} exf4 {[%emt 0:12:53]} 29. Nxf4 {[%emt 0:00:17]} Rhe8 {[%emt 0:00:53]} 30. Ne6+ {[%emt 0:03:36]} Rxe6 {[%emt 0:02:03]} 31. dxe6 {[%emt 0:00:16]} Qxe6 {[%emt 0:00:16]} 32. exf5 {[%emt 0:02:10]} Qxe3 {[%emt 0:03:54]} 33. Rxe3 {[%emt 0:00:53]} Nxf5 {[%emt 0:00:06]} 34. Ra3 {[%emt 0:00:12]} Nd4 {[%emt 0:05:29]} 35. Bd3 {[%emt 0:01:02]} Re8 {[%emt 0:01:48]} 36. Ra7 {[%emt 0:01:25]} Re7 {[%emt 0:00:05]} 37. Be4 {[%emt 0:07:53]} d5 {[%emt 0:01:10]} 38. Bxd5 {[%emt 0:02:21]} Nxd5 {[%emt 0:00:29]} 39. cxd5 {[%emt 0:00:02]} Nxb5 {[%emt 0:00:33]} 40. Ra5 {[%emt 0:00:00]} Nd6 {[%emt 0:00:00]} 41. Raxc5 {[%emt 0:02:03]} Kf6 {[%emt 0:07:27]} 42. Rc7 {[%emt 0:06:33]} Re5 {[%emt 0:12:41]} 43. Rf1+ {[%emt 0:05:31]} Nf5 {[%emt 0:06:06]} 44. d6 {[%emt 0:01:46]} Rd5 {[%emt 0:00:17]} 45. d7 {[%emt 0:00:38]} Ke7 {[%emt 0:00:15]} 46. Rxb7 {[%emt 0:01:20]} Rxd7 {[%emt 0:00:32]} 47. Rxd7+ {[%emt 0:10:57]} Kxd7 {[%emt 0:00:05]} 48. Rf3 {[%emt 0:01:10]} Ke6 {[%emt 0:01:27]} 49. Kc3 {[%emt 0:00:44]} Kd5 {[%emt 0:02:04]} 50. Kd2 {[%emt 0:02:30]} Ke5 {[%emt 0:00:36]} 51. Ra3 {[%emt 0:00:38]} Ng7 {[%emt 0:04:12]} 52. Ke3 {[%emt 0:01:28]} Nf5+ {[%emt 0:00:14]} 53. Kf2 {[%emt 0:00:27]} Ng7 {[%emt 0:00:35]} 54. Ra5+ {[%emt 0:01:13]} Kf6 {[%emt 0:00:39]} 55. Ke3 {[%emt 0:01:00]} Ne6 {[%emt 0:00:49]} 56. Ke4 {[%emt 0:00:08]} g5 {[%emt 0:01:17]} 57. Rf5+ {[%emt 0:00:52]} Kg6 {[%emt 0:00:19]} 58. Re5 {[%emt 0:00:10]} gxh4 {[%emt 0:00:35]} 59. Rxe6+ {[%emt 0:00:18]} Kf7 {[%emt 0:00:10]} 60. Rh6 {[%emt 0:06:56]} 1-0

[Event "Belarus-ch Men 2022"]
[Site "Minsk"]
[Date "2022.01.13"]
[Round "3.1"]
[White "Volianuk, Vitaly"]
[Black "Tsaruk, Maksim"]
[Result "0-1"]
[ECO "C89"]
[WhiteElo "2267"]
[BlackElo "2343"]
[Annotator "ChessBase"]
[PlyCount "116"]
[EventDate "2022.01.09"]
[EventType "tourn"]
[EventCountry "BLR"]
[SourceTitle "playchess.com"]
[Source "ChessBase"]
[SourceQuality "1"]
[TimeControl "40/5400+30:1800+30"]

1. e4 {[%emt 0:00:03]} e5 {[%emt 0:00:27]} 2. Nf3 {[%emt 0:00:09]} Nc6 {[%emt 0:00:10]} 3. Bb5 {[%emt 0:00:09]} a6 {[%emt 0:00:07]} 4. Ba4 {[%emt 0:00:15]} Nf6 {[%emt 0:00:10]} 5. d3 {[%emt 0:00:15]} b5 {[%emt 1:32:06]} 6. Bb3 Be7 7. c3 Bb7 {[%emt 0:00:00]} 8. O-O {[%emt 0:03:03]} O-O {[%emt 0:00:00]} 9. Re1 {[%emt 0:01:22]} d5 {[%emt 0:00:00]} 10. Bg5 {[%emt 0:15:09]} dxe4 {[%emt 0:00:00]} 11. dxe4 {[%emt 0:00:16]} Qxd1 {[%emt 0:00:00]} 12. Bxd1 {[%emt 0:02:07]} Nd7 {[%emt 0:00:00]} 13. Bxe7 {[%emt 0:03:57]} Nxe7 {[%emt 0:00:00]} 14. Nbd2 {[%emt 0:02:04]} Rfd8 {[%emt 0:00:00]} 15. b4 {[%emt 0:11:53]} c5 {[%emt 0:00:00]} 16. Nb3 {[%emt 0:01:42]} c4 {[%emt 0:00:00]} 17. Na5 {[%emt 0:01:36]} Bc6 {[%emt 0:00:00]} 18. Bc2 {[%emt 0:12:06]} f6 {[%emt 0:00:00]} 19. Red1 {[%emt 0:04:36]} Nb6 {[%emt 0:00:00]} 20. Kf1 {[%emt 0:06:37]} Kf7 {[%emt 0:00:00]} 21. Ke2 {[%emt 0:02:07]} Rac8 {[%emt 0:00:00]} 22. Nd2 {[%emt 0:05:52]} Ba8 {[%emt 0:00:00]} 23. a4 {[%emt 0:06:17]} Rb8 {[%emt 0:00:00]} 24. axb5 {[%emt 0:02:12]} axb5 {[%emt 0:00:00]} 25. f3 {[%emt 0:02:16]} Nbc8 {[%emt 0:05:27]} 26. Nf1 {[%emt 0:08:18]} Nd6 {[%emt 0:00:04]} 27. Ne3 {[%emt 0:00:27]} Ne8 {[%emt 0:00:07]} 28. Ra2 {[%emt 0:03:36]} h5 {[%emt 0:02:23]} 29. Rda1 {[%emt 0:01:17]} Nc7 {[%emt 0:00:27]} 30. Rd1 {[%emt 0:02:17]} Ne6 {[%emt 0:00:26]} 31. g3 {[%emt 0:00:23]} h4 {[%emt 0:02:06]} 32. Raa1 {[%emt 0:00:35]} g6 {[%emt 0:00:12]} 33. Ng2 {[%emt 0:01:15]} hxg3 {[%emt 0:00:16]} 34. hxg3 {[%emt 0:00:08]} f5 {[%emt 0:02:21]} 35. Ke3 {[%emt 0:01:41]} Kf6 {[%emt 0:00:34]} 36. Rxd8 {[%emt 0:01:45]} Rxd8 {[%emt 0:00:04]} 37. Rd1 {[%emt 0:00:36]} Rxd1 {[%emt 0:00:29]} 38. Bxd1 {[%emt 0:00:01]} fxe4 {[%emt 0:00:22]} 39. fxe4 {[%emt 0:00:11]} Ng5 {[%emt 0:00:11]} 40. Bc2 {[%emt 0:00:00]} Nc8 {[%emt 0:00:00]} 41. Nf4 {[%emt 0:07:51]} exf4+ {[%emt 0:02:58]} 42. gxf4 {[%emt 0:00:08]} Ne6 {[%emt 0:02:49]} 43. f5 {[%emt 0:01:36]} g5 {[%emt 0:09:36]} 44. fxe6 {[%emt 0:00:49]} Kxe6 {[%emt 0:01:06]} 45. Kd4 {[%emt 0:04:01]} g4 {[%emt 0:00:45]} 46. Bd1 {[%emt 0:08:27]} g3 {[%emt 0:00:04]} 47. Bg4+ {[%emt 0:01:05]} Kd6 {[%emt 0:09:21]} 48. Ke3 {[%emt 0:04:27]} Nb6 {[%emt 0:00:17]} 49. Kf3 {[%emt 0:03:12]} Na4 {[%emt 0:04:06]} 50. Kxg3 {[%emt 0:00:13]} Nxc3 {[%emt 0:00:05]} 51. Kf4 {[%emt 0:01:41]} Bxe4 {[%emt 0:00:54]} 52. Ke3 {[%emt 0:01:38]} Ke5 {[%emt 0:00:13]} 53. Bd7 {[%emt 0:01:15]} Nd5+ {[%emt 0:01:17]} 54. Ke2 {[%emt 0:01:29]} Kd4 {[%emt 0:00:26]} 55. Nc6+ {[%emt 0:00:32]} Kc3 {[%emt 0:00:04]} 56. Na7 {[%emt 0:00:11]} Kxb4 {[%emt 0:00:29]} 57. Nxb5 {[%emt 0:00:50]} Nf6 {[%emt 0:00:30]} 58. Nd6 {[%emt 0:01:01]} Bd3+ {[%emt 0:00:07]} 0-1

[Event "Belarus-ch Men 2022"]
[Site "Minsk"]
[Date "2022.01.13"]
[Round "3.4"]
[White "Siniauski, Artsiom"]
[Black "Zarubitski, Viachaslau"]
[Result "0-1"]
[ECO "B34"]
[WhiteElo "2301"]
[BlackElo "2413"]
[Annotator "RC"]
[PlyCount "70"]
[EventDate "2022.01.09"]
[EventType "tourn"]
[EventCountry "BLR"]
[SourceTitle "playchess.com"]
[Source "ChessBase"]
[SourceQuality "1"]
[TimeControl "40/5400+30:1800+30"]

1. e4 {[%emt 0:00:03]} c5 {[%emt 0:00:24]} 2. Nf3 {[%emt 0:00:06]} Nc6 {[%emt 0:00:28]} 3. d4 {[%emt 0:00:38]} cxd4 {[%emt 0:00:17]} 4. Nxd4 {[%emt 0:00:04]} g6 {[%emt 0:00:08]} 5. Nc3 {[%emt 0:02:10]} Bg7 {[%emt 0:00:18]} 6. Be3 {[%emt 0:00:31]} Nf6 {[%emt 0:00:13]} 7. Nxc6 {[%emt 0:04:57]} bxc6 {[%emt 0:00:05]} 8. e5 {[%emt 0:01:09]} Ng8 {[%emt 0:00:02]} 9. f4 {[%emt 0:01:42]} Nh6 {[%emt 0:00:14]} 10. Bc4 {[%emt 0:08:31]} O-O {[%emt 0:13:38]} 11. Qf3 {[%emt 0:05:45]} d6 {[%emt 0:10:47]} 12. Qxc6 {[%emt 0:13:11]} Bd7 {[%emt 0:12:45]} 13. Qf3 {[%emt 0:00:54]} Rc8 {[%emt 0:09:45]} 14. Bb3 {[%emt 0:05:54]} Bc6 {[%emt 0:08:24]} 15. Qe2 {[%emt 0:08:39]} Nf5 {[%emt 0:00:54]} 16. e6 {[%emt 0:07:09]} Bxg2 {[%emt 0:05:42]} 17. exf7+ {[%emt 0:00:31]} Kh8 {[%emt 0:00:06]} 18. Rg1 {[%emt 0:00:57]} Rxc3 {[%emt 0:14:34]} 19. bxc3 {[%emt 0:00:48]} Bxc3+ {[%emt 0:00:03]} 20. Kf2 {[%emt 0:00:27]} Ba8 {[%emt 0:00:53]} 21. Qd3 {[%emt 0:06:27]} Bxa1 {[%emt 0:02:42]} 22. Rxa1 {[%emt 0:00:47]} e5 {[%emt 0:00:01]} 23. Ke2 {[%emt 0:04:33]} Qh4 {[%emt 0:00:35]} 24. Kd2 {[%emt 0:00:16]} Qxh2+ {[%emt 0:03:27]} 25. Kc3 {[%emt 0:00:38]} Nxe3 {[%emt 0:01:59]} 26. Qxd6 {[%emt 0:01:12]} Rc8+ {[%emt 0:00:45]} 27. Kb2 {[%emt 0:03:18]} Qxf4 {[%emt 0:00:14]} 28. c3 {[%emt 0:01:17]} Kg7 {[%emt 0:03:20]} 29. Re1 {[%emt 0:02:49]} Qf2+ {[%emt 0:02:53]} 30. Ka3 {[%emt 0:00:08]} Nc2+ {[%emt 0:00:19]} 31. Bxc2 {[%emt 0:01:53]} Qxe1 {[%emt 0:00:06]} 32. Bb3 {[%emt 0:00:09]} Qc1+ {[%emt 0:00:38]} 33. Ka4 {[%emt 0:00:13]} Qf4+ {[%emt 0:00:45]} 34. Ka5 {[%emt 0:00:04]} Rf8 {[%emt 0:00:19]} 35. a4 {[%emt 0:00:39]} Qf6 {[%emt 0:00:14]} 0-1

[Event "Belarus-ch Men 2022"]
[Site "Minsk"]
[Date "2022.01.13"]
[Round "4.1"]
[White "Tsaruk, Maksim"]
[Black "Runets, Ivan"]
[Result "1-0"]
[ECO "C95"]
[WhiteElo "2343"]
[BlackElo "2240"]
[Annotator "ChessBase"]
[PlyCount "101"]
[EventDate "2022.01.09"]
[EventType "tourn"]
[EventCountry "BLR"]
[SourceTitle "playchess.com"]
[Source "ChessBase"]
[SourceQuality "1"]
[TimeControl "40/5400+30:1800+30"]

1. e4 {[%emt 0:00:05]} e5 {[%emt 0:00:08]} 2. Nf3 {[%emt 0:00:19]} Nc6 {[%emt 0:00:05]} 3. Bb5 {[%emt 0:00:26]} a6 {[%emt 0:00:07]} 4. Ba4 {[%emt 0:00:07]} Nf6 {[%emt 0:00:07]} 5. O-O {[%emt 0:01:21]} Be7 {[%emt 0:00:06]} 6. Re1 {[%emt 0:00:32]} b5 {[%emt 0:00:07]} 7. Bb3 {[%emt 0:00:06]} d6 {[%emt 0:00:05]} 8. c3 {[%emt 0:00:32]} O-O {[%emt 0:00:09]} 9. h3 {[%emt 0:03:03]} Nb8 {[%emt 0:00:42]} 10. d4 {[%emt 0:00:28]} Nbd7 {[%emt 0:00:06]} 11. Nbd2 {[%emt 0:00:24]} c5 {[%emt 0:00:07]} 12. Nf1 {[%emt 0:01:31]} Re8 {[%emt 0:01:31]} 13. Ng3 {[%emt 0:00:23]} Bf8 {[%emt 0:07:43]} 14. Bc2 {[%emt 0:08:08]} Bb7 {[%emt 0:07:04]} 15. d5 {[%emt 0:00:28]} g6 {[%emt 0:08:27]} 16. Bg5 {[%emt 0:03:02]} c4 {[%emt 0:05:22]} 17. Qd2 {[%emt 0:05:15]} Nc5 {[%emt 0:07:36]} 18. b4 {[%emt 0:06:53]} cxb3 {[%emt 0:02:12]} 19. axb3 {[%emt 0:00:06]} Bg7 {[%emt 0:03:28]} 20. b4 {[%emt 0:08:20]} Ncd7 {[%emt 0:04:19]} 21. Bh6 {[%emt 0:22:04]} Bxh6 {[%emt 0:00:59]} 22. Qxh6 {[%emt 0:01:29]} Nb6 {[%emt 0:04:30]} 23. Bd3 {[%emt 0:00:47]} Qe7 {[%emt 0:05:58]} 24. Nd2 {[%emt 0:07:05]} Rec8 {[%emt 0:11:22]} 25. Rec1 {[%emt 0:00:09]} Nfd7 {[%emt 0:05:48]} 26. Rc2 {[%emt 0:11:05]} Na4 {[%emt 0:14:02]} 27. Rac1 {[%emt 0:00:05]} Ndb6 {[%emt 0:00:37]} 28. Ngf1 {[%emt 0:00:09]} Rc7 {[%emt 0:03:44]} 29. Ne3 {[%emt 0:00:33]} Bc8 {[%emt 0:01:29]} 30. c4 {[%emt 0:03:31]} bxc4 {[%emt 0:01:11]} 31. Ndxc4 {[%emt 0:02:23]} Nxc4 {[%emt 0:00:08]} 32. Nxc4 {[%emt 0:04:55]} Bd7 {[%emt 0:02:02]} 33. Na5 {[%emt 0:03:16]} Rxc2 {[%emt 0:00:06]} 34. Rxc2 {[%emt 0:00:03]} Qf8 {[%emt 0:03:05]} 35. Qc1 {[%emt 0:02:06]} Qb8 {[%emt 0:00:30]} 36. Nc6 {[%emt 0:00:34]} Bxc6 {[%emt 0:02:26]} 37. dxc6 {[%emt 0:00:06]} Nb6 {[%emt 0:00:50]} 38. c7 {[%emt 0:04:24]} Qb7 {[%emt 0:00:16]} 39. Qg5 {[%emt 0:02:59]} Kg7 {[%emt 0:00:43]} 40. Qd8 {[%emt 0:00:00]} Nc8 {[%emt 0:00:00]} 41. Kh2 {[%emt 0:05:16]} a5 {[%emt 0:03:48]} 42. bxa5 {[%emt 0:07:21]} Qb3 {[%emt 0:03:41]} 43. Rd2 {[%emt 0:02:57]} Qc3 {[%emt 0:01:16]} 44. Rd1 {[%emt 0:00:07]} Qxa5 {[%emt 0:05:30]} 45. Be2 {[%emt 0:07:35]} h5 {[%emt 0:05:43]} 46. Bc4 {[%emt 0:05:50]} Qa4 {[%emt 0:10:12]} 47. Bd5 {[%emt 0:00:14]} Qxd1 {[%emt 0:01:09]} 48. Qd7 {[%emt 0:00:11]} Ne7 {[%emt 0:03:05]} 49. Qxe7 {[%emt 0:00:14]} Rc8 {[%emt 0:00:09]} 50. Qxf7+ {[%emt 0:00:25]} Kh6 {[%emt 0:00:33]} 51. Be6 {[%emt 0:00:32]} 1-0

[Event "Belarus-ch Men 2022"]
[Site "Minsk"]
[Date "2022.01.13"]
[Round "4.5"]
[White "Stribuk, Artiom"]
[Black "Lutsko, Igor"]
[Result "0-1"]
[ECO "A90"]
[WhiteElo "2210"]
[BlackElo "2305"]
[Annotator "ChessBase"]
[PlyCount "126"]
[EventDate "2022.01.09"]
[EventType "tourn"]
[EventCountry "BLR"]
[SourceTitle "playchess.com"]
[Source "ChessBase"]
[SourceQuality "1"]
[TimeControl "40/5400+30:1800+30"]

1. d4 {[%emt 0:00:01]} e6 {[%emt 0:00:16]} 2. c4 {[%emt 0:00:11]} f5 {[%emt 0:00:36]} 3. g3 {[%emt 0:00:49]} Nf6 {[%emt 0:00:13]} 4. Bg2 {[%emt 0:00:07]} d5 {[%emt 0:01:27]} 5. Nf3 {[%emt 0:00:22]} c6 {[%emt 0:01:54]} 6. O-O {[%emt 0:00:09]} Bd6 {[%emt 0:00:08]} 7. Nc3 {[%emt 0:00:14]} O-O {[%emt 0:00:07]} 8. Qc2 {[%emt 0:00:04]} Bd7 {[%emt 0:10:21]} 9. Rb1 {[%emt 0:01:45]} Be8 {[%emt 0:03:37]} 10. b4 {[%emt 0:00:47]} f4 {[%emt 0:04:01]} 11. Qb3 {[%emt 0:11:45]} fxg3 {[%emt 0:12:06]} 12. hxg3 {[%emt 0:01:52]} Bg6 {[%emt 0:00:00]} 13. Rb2 {[%emt 0:00:00]} Nbd7 {[%emt 0:09:16]} 14. Ng5 {[%emt 0:06:11]} Qe7 {[%emt 0:20:10]} 15. Bh3 {[%emt 0:22:15]} Bf5 {[%emt 0:15:04]} 16. Bxf5 {[%emt 0:00:37]} exf5 {[%emt 0:00:01]} 17. cxd5 {[%emt 0:00:16]} Kh8 {[%emt 0:00:04]} 18. a3 {[%emt 0:17:43]} a5 {[%emt 0:10:19]} 19. dxc6 {[%emt 0:04:38]} axb4 {[%emt 0:04:19]} 20. axb4 {[%emt 0:06:46]} bxc6 {[%emt 0:00:04]} 21. b5 {[%emt 0:01:26]} c5 {[%emt 0:01:07]} 22. Nd5 {[%emt 0:03:57]} Nxd5 {[%emt 0:02:06]} 23. Qxd5 {[%emt 0:00:02]} cxd4 {[%emt 0:00:26]} 24. b6 {[%emt 0:07:37]} Rab8 {[%emt 0:01:06]} 25. b7 {[%emt 0:03:35]} Nc5 {[%emt 0:00:47]} 26. Bf4 {[%emt 0:01:25]} Bxf4 {[%emt 0:00:33]} 27. gxf4 {[%emt 0:00:01]} Na4 {[%emt 0:00:08]} 28. Rb3 {[%emt 0:04:45]} Nc3 {[%emt 0:00:12]} 29. Qf3 {[%emt 0:01:26]} h6 {[%emt 0:00:46]} 30. Nh3 {[%emt 0:01:00]} Nxe2+ {[%emt 0:00:44]} 31. Kg2 {[%emt 0:01:07]} Nc3 {[%emt 0:00:07]} 32. Ra1 {[%emt 0:00:37]} Ne4 {[%emt 0:00:24]} 33. Rd1 {[%emt 0:00:51]} Rfd8 {[%emt 0:00:41]} 34. Rbd3 {[%emt 0:00:46]} Qc5 {[%emt 0:00:33]} 35. Rb1 {[%emt 0:01:04]} Rd7 {[%emt 0:00:38]} 36. Qh5 {[%emt 0:01:28]} Qd5 {[%emt 0:00:49]} 37. Kh2 {[%emt 0:00:29]} Nf6 {[%emt 0:00:32]} 38. Qg6 {[%emt 0:00:26]} Ng4+ {[%emt 0:00:49]} 39. Kg3 {[%emt 0:00:00]} Rd6 {[%emt 0:00:00]} 40. Qh5 {[%emt 0:00:00]} Nf6 {[%emt 0:00:00]} 41. Qf3 {[%emt 0:05:11]} Ne4+ {[%emt 0:01:55]} 42. Kh2 {[%emt 0:00:46]} Rd7 {[%emt 0:04:13]} 43. Rbd1 {[%emt 0:14:19]} Qc5 {[%emt 0:02:37]} 44. Qh5 {[%emt 0:00:45]} Nf6 {[%emt 0:03:19]} 45. Qf3 {[%emt 0:00:59]} Kg8 {[%emt 0:03:19]} 46. Kg2 {[%emt 0:03:28]} Ne4 {[%emt 0:01:44]} 47. Qh5 {[%emt 0:01:40]} Rbxb7 {[%emt 0:01:38]} 48. Qe8+ {[%emt 0:00:43]} Kh7 {[%emt 0:00:23]} 49. Re1 {[%emt 0:04:39]} Re7 {[%emt 0:02:43]} 50. Qf8 {[%emt 0:00:44]} Qd5 {[%emt 0:02:05]} 51. f3 {[%emt 0:02:13]} Qa2+ {[%emt 0:08:17]} 52. Kg1 {[%emt 0:00:13]} Rf7 {[%emt 0:00:32]} 53. Qd8 {[%emt 0:01:34]} Rb1 {[%emt 0:02:00]} 54. Rdd1 {[%emt 0:00:24]} Rxd1 55. Rxd1 {[%emt 0:00:01]} Qe2 {[%emt 0:02:13]} 56. Rf1 {[%emt 0:00:35]} Nd2 {[%emt 0:00:36]} 57. Rf2 {[%emt 0:00:08]} Nxf3+ {[%emt 0:00:17]} 58. Kg2 {[%emt 0:00:09]} Ne1+ {[%emt 0:01:09]} 59. Kh2 {[%emt 0:00:05]} Qe4 {[%emt 0:00:50]} 60. Kg3 {[%emt 0:02:45]} Qe3+ {[%emt 0:01:24]} 61. Kh2 {[%emt 0:00:13]} Rf6 {[%emt 0:00:23]} 62. Qd5 {[%emt 0:00:37]} d3 {[%emt 0:01:07]} 63. Qh1 {[%emt 0:00:41]} Rg6 {[%emt 0:00:23]} 0-1